bitfinex/quotes_ETHUSD_20250810
["timestamp","ask_amount","ask_price","bid_price","bid_amount"]
[1754856811277,0.9188,4233.8,4233.7,2.36200014]
[1754856811479,1e-08,4233.9,4233.8,2.36194435]
[1754856811997,1e-08,4233.9,4232.9,0.4526]
[1754856811998,0.91880001,4233.9,4232.3,0.4526]
[1754856812296,0.91880001,4233.9,4233.8,2.36194435]
[1754856812457,0.91880001,4233.9,4233.8,16.35794435]
[1754856812766,1.42263507,4233.9,4233.8,10.0]
[1754856812963,1.62787796,4233.9,4233.8,10.0]
[1754856813164,1.42263507,4233.9,4233.8,10.0]
[1754856813364,1.54103507,4233.9,4233.8,10.0]
[1754856817360,4.75394107,4233.9,4233.8,10.0]
[1754856817559,4.12414725,4233.9,4233.8,10.0]
[1754856817761,1.76225869,4233.9,4233.8,10.0]
[1754856818089,4.12414382,4233.9,4233.8,10.0]
[1754856818295,2.3935994,4233.9,4233.8,10.0]
[1754856818858,0.62423507,4233.9,4233.8,10.0]
[1754856819077,0.12040001,4233.9,4233.8,10.0]
[1754856819292,0.00200001,4233.9,4233.8,12.36194435]
[1754856819988,0.00200001,4233.9,4233.8,14.36228086]
[1754856821082,0.00200001,4233.9,4233.8,14.81488086]
[1754856821279,0.00200001,4233.9,4233.8,15.23508086]
[1754856821880,0.00200001,4233.9,4233.8,14.36228086]
[1754856822085,0.00200001,4233.9,4233.8,16.45034435]
[1754856822794,0.45520001,4233.9,4233.8,16.45034435]
[1754856823097,0.92080001,4233.9,4233.8,12.48034435]
[1754856823393,0.00200001,4233.9,4233.8,16.44634435]
[1754856823572,0.00200001,4233.9,4233.8,12.48034435]
[1754856823772,0.00200001,4233.9,4233.8,16.44634435]
[1754856824790,0.00200001,4233.9,4233.8,16.44534435]
[1754856824992,0.92080001,4233.9,4233.8,16.44534435]
[1754856826693,0.00200001,4233.9,4233.8,16.44534435]
[1754856827267,0.00200001,4233.9,4233.8,18.326084]
[1754856828777,0.00200001,4233.9,4233.8,19.195884]
[1754856828978,0.00200001,4233.9,4233.8,18.775684]
[1754856829193,0.00200001,4233.9,4233.8,18.326084]
[1754856829360,0.00200001,4233.9,4233.8,19.195884]
[1754856831391,0.00200001,4233.9,4233.8,18.775684]
[1754856831596,0.00200001,4233.9,4233.8,19.195884]
[1754856831890,1e-08,4233.9,4233.8,22.195884]
[1754856833095,1e-08,4234.4,4233.9,5.36188856]
[1754856833296,1e-08,4234.4,4234.3,2.36166544]
[1754856833500,1e-08,4234.4,4234.3,6.44068209]
[1754856833667,1e-08,4234.4,4234.3,6.41706544]
[1754856833868,1e-08,4234.9,4234.7,2.36144236]
[1754856834068,1e-08,4234.9,4234.8,3.936]
[1754856834281,1e-08,4234.9,4234.8,7.04553084]
[1754856834608,1e-08,4234.9,4234.8,7.49513084]
[1754856834782,1e-08,4234.9,4234.8,7.91533084]
[1754856837295,1e-08,4234.9,4234.8,10.91533084]
[1754856839294,1e-08,4234.9,4234.8,11.46533084]
[1754856840497,1e-08,4234.9,4234.8,10.02853084]
[1754856841110,3.0,4237.4,4236.3,2.36054567]
[1754856841311,0.1184,4236.7,4236.4,3.918]
[1754856842501,0.1184,4236.7,4236.4,6.27849193]
[1754856842696,0.55,4237.7,4236.4,4.0364]
[1754856842697,0.1184,4237.0,4236.4,4.0364]
[1754856843091,0.428,4236.9,4236.8,2.3602719]
[1754856843297,0.428,4236.9,4236.8,6.2722719]
[1754856843724,0.428,4236.9,4236.8,3.912]
[1754856843924,0.9277,4236.9,4236.8,3.911]
[1754856844223,1.25648446,4236.9,4236.8,3.911]
[1754856844925,0.9277,4236.9,4236.8,3.911]
[1754856845103,0.9277,4236.9,4236.6,3.91]
[1754856845299,0.9277,4236.8,4236.6,3.91]
[1754856845614,0.428,4236.7,4236.6,3.91]
[1754856845924,0.9277,4236.7,4236.4,3.906]
[1754856846229,2.86008559,4236.6,4236.4,3.906]
[1754856846615,0.428,4236.5,4236.4,3.906]
[1754856847734,0.428,4236.8,4236.4,3.906]
[1754856848096,0.428,4236.7,4236.4,3.906]
[1754856848734,0.1184,4236.9,4236.4,3.906]
[1754856848895,0.1184,4236.9,4236.4,6.26649226]
[1754856848896,0.428,4236.8,4236.4,6.26649226]
[1754856849097,0.1184,4236.9,4236.5,2.36040707]
[1754856849404,0.428,4236.7,4236.5,2.36040707]
[1754856849816,0.428,4236.7,4236.4,3.906]
[1754856850625,0.428,4237.1,4236.7,2.36028298]
[1754856850804,0.428,4237.1,4236.8,3.897]
[1754856851004,0.428,4237.1,4236.9,2.36020148]
[1754856851207,0.428,4237.1,4236.8,3.897]
[1754856852648,0.428,4237.0,4236.8,3.897]
[1754856852795,0.428,4236.9,4236.6,0.1184]
[1754856853122,0.428,4236.9,4236.6,3.889]
[1754856853123,2.78822929,4236.9,4236.6,3.889]
[1754856853323,0.9277,4236.8,4236.6,3.889]
[1754856853512,2.36032761,4236.7,4236.5,3.884]
[1754856853827,0.428,4236.6,4236.5,3.884]
[1754856854622,0.1184,4236.9,4236.5,3.884]
[1754856854823,0.428,4236.8,4236.5,3.884]
[1754856855137,0.428,4236.7,4236.5,3.884]
[1754856855427,0.1184,4236.9,4236.5,3.884]
[1754856855428,0.428,4236.6,4236.5,3.884]
[1754856858623,0.4709,4236.6,4236.5,3.884]
[1754856860121,0.5893,4236.9,4236.5,3.884]
[1754856860321,0.1184,4236.9,4236.5,3.884]
[1754856860529,0.4709,4236.8,4236.5,3.884]
[1754856860712,1.23074646,4236.7,4236.1,0.1184]
[1754856860912,2.360555,4236.3,4235.7,3.867]
[1754856861155,0.4709,4236.2,4235.7,3.867]
[1754856861331,0.4709,4236.1,4235.7,3.867]
[1754856861649,0.4709,4237.0,4235.7,3.867]
[1754856861806,2.36041462,4236.6,4235.8,2.75148123]
[1754856862017,0.4709,4236.5,4235.8,0.3907]
[1754856862214,2.36049475,4236.4,4235.8,0.3907]
[1754856862555,2.83145624,4236.3,4235.9,3.868]
[1754856862707,0.4709,4236.2,4235.9,3.868]
[1754856863657,3.70051419,4237.3,4235.9,3.868]
[1754856863658,0.4709,4236.6,4235.9,3.868]
[1754856863857,2.36056705,4236.3,4235.9,3.868]
[1754856864008,0.4709,4236.2,4235.9,3.868]
[1754856864209,2.36049494,4236.4,4235.9,3.868]
[1754856864529,0.4709,4236.2,4235.9,3.868]
[1754856864842,0.50682425,4237.0,4235.9,3.862]
[1754856864843,2.36073509,4236.0,4235.9,3.862]
[1754856865018,2.83163509,4236.0,4235.9,3.862]
[1754856865446,0.55,4236.7,4235.9,3.862]
[1754856865750,2.36071765,4236.0,4235.9,3.862]
[1754856868144,2.36060826,4236.2,4235.8,3.854]
[1754856868310,2.36077338,4235.9,4235.8,3.854]
[1754856868510,0.4709,4236.4,4235.8,3.854]
[1754856868822,2.36071854,4236.0,4235.8,3.854]
[1754856869424,2.36066192,4236.1,4235.8,3.854]
[1754856869730,2.36077338,4235.9,4235.8,3.854]
[1754856870445,2.36072932,4236.0,4235.8,3.854]
[1754856870648,2.3606744,4236.1,4235.8,3.854]
[1754856870838,0.4709,4236.4,4235.8,3.854]
[1754856870839,2.47917338,4235.9,4235.8,3.854]
[1754856871547,0.1184,4235.9,4235.8,3.854]
[1754856872849,2.47917338,4235.9,4235.8,3.854]
[1754856873942,0.1184,4235.9,4235.8,3.854]
[1754856874128,2.47917338,4235.9,4235.8,3.854]
[1754856879450,0.1184,4235.9,4235.8,3.854]
[1754856879755,0.1184,4236.4,4235.8,5.02020739]
[1754856879931,0.1184,4236.4,4235.9,0.65830739]
[1754856880140,0.1184,4236.7,4236.0,3.13738526]
[1754856880337,0.1184,4236.7,4236.1,0.22080739]
[1754856880532,0.1184,4236.7,4236.2,4.04680739]
[1754856880760,0.1184,4236.7,4236.3,0.22080739]
[1754856881057,0.1184,4236.7,4236.4,0.22080739]
[1754856881363,2.47874708,4236.7,4236.5,0.22080739]
[1754856881563,2.47874708,4236.7,4236.6,0.22080739]
[1754856881866,0.1184,4236.7,4236.6,0.22080739]
[1754856882976,0.709087,4237.5,4236.8,2.36024426]
[1754856883119,0.1176,4237.3,4236.9,2.5810182]
[1754856883318,0.1176,4237.3,4237.0,0.22080739]
[1754856883522,0.1176,4237.3,4237.1,0.22082188]
[1754856883760,0.1176,4237.3,4236.9,6.61771081]
[1754856883761,0.1176,4237.3,4237.2,0.22082188]
[1754856884122,2.47759339,4237.3,4237.2,0.22082188]
[1754856884321,0.1176,4237.3,4237.2,0.22079086]
[1754856885552,0.5885,4237.3,4237.2,0.22079086]
[1754856886158,0.1176,4237.3,4237.2,0.22079086]
[1754856886842,2.94849339,4237.3,4237.2,0.22079086]
[1754856887045,4.02932561,4237.3,4237.2,0.22079086]
[1754856887245,8.30722561,4237.3,4237.2,0.22079086]
[1754856887647,11.18962561,4237.3,4237.2,0.22079086]
[1754856889849,7.37662561,4237.3,4237.2,0.22079086]
[1754856890056,11.18762561,4237.3,4237.2,0.22079086]
[1754856890257,11.89680461,4237.3,4237.2,0.22079086]
[1754856890441,8.08580461,4237.3,4237.2,0.22079086]
[1754856890764,11.42890461,4237.3,4237.2,0.22079086]
[1754856891652,2.36028972,4236.8,4236.3,0.4455]
[1754856891867,2.36028972,4236.8,4236.4,0.22073774]
[1754856892040,2.36028972,4236.8,4236.5,0.22073774]
[1754856892382,2.36028972,4236.8,4236.6,0.22072466]
[1754856892680,2.36031697,4236.8,4236.7,0.22073269]
[1754856895379,2.83491697,4236.8,4236.7,0.22073269]
[1754856895983,2.36031697,4236.8,4236.7,0.22073269]
[1754856896163,3.38491697,4236.8,4236.7,0.22073269]
[1754856897276,2.91031697,4236.8,4236.7,0.22073269]
[1754856897771,3.50331697,4236.8,4236.7,0.22073269]
[1754856898149,7.29631697,4236.8,4236.7,0.22073269]
[1754856898345,2.36061631,4236.2,4235.8,3.812]
[1754856898544,2.47901631,4236.2,4235.9,0.22079295]
[1754856898745,2.36066192,4236.1,4236.0,0.22079295]
[1754856899275,2.47901481,4236.2,4236.0,0.22079295]
[1754856899477,2.47901968,4236.2,4235.8,0.001]
[1754856899770,2.47901968,4236.2,4235.9,0.22081555]
[1754856899974,2.47901968,4236.2,4236.0,0.22081555]
[1754856900172,2.47901968,4236.2,4236.1,0.22081555]
[1754856900390,0.1184,4236.2,4236.1,0.22081555]
[1754856900586,1.11623633,4237.6,4236.1,0.68111555]
[1754856900788,0.1184,4236.7,4236.2,1.34939872]
[1754856901090,2.36048378,4236.5,4236.3,0.22081555]
[1754856901294,2.36005694,4237.2,4236.4,0.22081555]
[1754856901295,2.36004908,4237.2,4236.4,0.22081555]
[1754856901494,0.70909,4237.3,4236.5,0.22081555]
[1754856901639,0.1184,4236.8,4236.6,0.66631555]
[1754856901854,0.1184,4236.8,4236.7,0.66631555]
[1754856904966,3.787,4237.4,4236.7,0.66631555]
[1754856905279,0.1184,4237.0,4236.8,0.66631555]
[1754856905459,0.1184,4237.0,4236.7,0.4603]
[1754856905460,0.1184,4237.0,4236.9,0.66631555]
[1754856906062,5.83435245,4237.8,4236.9,1.01508667]
[1754856906063,3.787,4237.8,4236.9,1.01508667]
[1754856906392,0.1176,4237.4,4237.0,0.22089332]
[1754856906561,0.1176,4237.4,4237.1,0.66639332]
[1754856906758,0.1176,4237.4,4237.2,0.66639332]
[1754856906976,0.1176,4237.4,4237.3,0.22089332]
[1754856907680,0.1176,4237.4,4237.3,0.66639332]
[1754856908966,0.1176,4237.4,4237.3,0.66644848]
[1754856909163,0.1176,4237.4,4237.3,1.12674848]
[1754856909470,0.1176,4237.4,4237.3,3.48674187]
[1754856909664,0.002,4238.4,4237.6,2.35981504]
[1754856909871,2.35945174,4238.3,4237.8,0.1176]
[1754856910065,2.47899441,4238.4,4237.9,0.66644848]
[1754856910263,0.1196,4238.4,4238.0,0.66644848]
[1754856910583,2.83408426,4238.3,4238.1,0.22094848]
[1754856910763,0.002,4238.4,4238.2,0.22094848]
[1754856910959,0.002,4238.4,4238.3,0.22094848]
[1754856911165,2.36138089,4238.4,4238.3,0.22094848]
[1754856911388,2.47898089,4238.4,4238.3,0.22094848]
[1754856912795,2.95358089,4238.4,4238.3,0.22094848]
[1754856913019,8.25236824,4238.4,4238.3,0.22094848]
[1754856913291,2.35967387,4237.9,4236.9,2.36021233]
[1754856913495,0.1176,4237.4,4237.0,0.22066389]
[1754856913694,0.1176,4237.4,4237.1,0.22066389]
[1754856913895,0.1176,4237.4,4237.2,0.22066389]
[1754856914096,0.1176,4237.4,4237.3,0.22066389]
[1754856914294,0.1176,4237.9,4237.3,3.15855728]
[1754856914500,0.1176,4237.9,4237.4,0.98201962]
[1754856914700,0.1176,4237.9,4237.5,0.2206413]
[1754856914889,2.35977063,4237.7,4237.6,0.2206413]
[1754856915091,2.83437063,4237.7,4237.6,0.2206413]
[1754856915292,3.86787063,4237.7,4237.6,0.2206413]
[1754856915605,4.86922919,4237.7,4237.6,0.2206413]
[1754856915800,4.98682919,4237.7,4237.6,0.2206413]
[1754856916194,8.73533909,4237.7,4237.6,0.2206413]
[1754856917077,11.73533909,4237.7,4237.6,0.2206413]
[1754856917312,2.3603888,4236.6,4236.2,0.001]
[1754856917611,3.786,4237.4,4236.3,0.66586052]
[1754856917773,0.1184,4236.6,4236.4,0.22066052]
[1754856917972,0.1184,4236.6,4236.5,0.22066052]
[1754856918692,2.3601613,4237.0,4236.5,0.66586052]
[1754856919028,0.1184,4236.8,4236.6,0.66586052]
[1754856919238,0.1184,4236.8,4236.7,0.22066052]
[1754856919578,0.1184,4236.8,4236.7,0.66586052]
[1754856920080,2.35993562,4237.5,4236.8,2.36022384]
[1754856920081,2.35989419,4237.5,4236.8,2.36022384]
[1754856920277,0.1176,4237.4,4236.9,3.02607322]
[1754856920478,0.1176,4237.4,4237.0,1.15786052]
[1754856920705,0.1176,4237.4,4237.1,0.66586052]
[1754856920902,0.1176,4237.4,4237.2,0.22066052]
[1754856921105,0.1176,4237.4,4237.3,0.22066052]
[1754856922179,0.1176,4237.4,4237.3,0.66586052]
[1754856922778,0.1176,4237.4,4237.3,0.22066052]
[1754856922978,0.5802,4237.4,4237.3,0.22066052]
[1754856923208,0.1176,4237.4,4237.3,0.22066052]
[1754856923411,0.1176,4237.4,4237.3,0.22064633]
[1754856923979,2.47753769,4237.4,4237.3,0.22064633]
[1754856924426,0.1176,4237.4,4237.3,0.22064633]
[1754856927522,2.47753769,4237.4,4237.3,0.22064633]
[1754856927704,7.19753769,4237.4,4237.3,0.22064633]
[1754856928413,8.70327507,4237.4,4237.3,0.22064633]
[1754856928613,11.70327507,4237.4,4237.3,0.22064633]
[1754856930605,12.20914185,4237.4,4237.3,0.22064633]
[1754856930910,2.36038332,4236.6,4236.5,0.001]
[1754856931110,6.26378332,4236.6,4236.5,0.22183044]
[1754856931622,7.19878332,4236.6,4236.5,0.22183044]
[1754856933166,10.19878332,4236.6,4236.5,0.22183044]
[1754856933425,10.19878332,4236.6,4236.0,0.001]
[1754856933426,2.91066192,4236.1,4236.0,0.001]
[1754856933715,10.02910075,4236.1,4236.0,0.001]
[1754856933904,10.62966192,4236.1,4236.0,0.001]
[1754856934104,10.74806192,4236.1,4236.0,0.001]
[1754856934310,12.43377415,4236.1,4236.0,0.001]
[1754856934903,8.64977415,4236.1,4236.0,0.001]
[1754856935103,12.43477415,4236.1,4236.0,0.001]
[1754856936619,3.55,4235.7,4234.9,0.001]
[1754856936935,9.77796198,4235.4,4235.3,1e-08]
[1754856937212,13.56196198,4235.4,4235.3,1e-08]
[1754856937416,14.49696198,4235.4,4235.3,1e-08]
[1754856937616,13.44456198,4235.4,4235.3,1e-08]
[1754856937817,15.3110863,4235.4,4235.3,1e-08]
[1754856938519,16.2460863,4235.4,4235.3,1e-08]
[1754856944118,15.3110863,4235.4,4235.3,1e-08]
[1754856945129,11.5260863,4235.4,4235.3,1e-08]
[1754856945333,15.3110863,4235.4,4235.3,1e-08]
[1754856945494,15.3110863,4235.4,4234.6,0.4852]
[1754856945495,0.55,4234.9,4234.6,0.04]
[1754856945699,9.10995226,4234.7,4234.6,0.04]
[1754856946097,10.04495226,4234.7,4234.6,0.04]
[1754856946300,10.16335226,4234.7,4234.6,0.04]
[1754856948727,10.71335226,4234.7,4234.6,0.04]
[1754856949302,10.82894174,4234.7,4234.6,0.04]
[1754856949497,12.79711483,4234.7,4234.6,0.04]
[1754856949703,12.68152535,4234.7,4234.6,0.04]
[1754856950336,12.8000693,4234.7,4234.6,0.04]
[1754856950537,13.7000693,4234.7,4234.6,0.04]
[1754856951036,5.911777,4234.1,4234.0,0.001]
[1754856951213,14.73592757,4234.1,4234.0,0.001]
[1754856951534,15.69692757,4234.1,4234.0,0.001]
[1754856951835,10.98741767,4234.1,4234.0,0.001]
[1754856952038,9.84623997,4234.1,4234.0,0.001]
[1754856952249,9.84623997,4234.1,4234.0,0.9195]
[1754856952450,6.06223997,4234.1,4234.0,0.9195]
[1754856952742,7.48446297,4234.1,4234.0,0.9195]
[1754856953160,0.70046297,4234.1,4234.0,0.9195]
[1754856953313,0.58206297,4234.1,4234.0,1.13903807]
[1754856953645,0.58206297,4234.1,4234.0,1.50106927]
[1754856953947,0.58206297,4234.1,4234.0,3.50087085]
[1754856954832,0.58206297,4234.1,4234.0,3.61927085]
[1754856955115,3.49383997,4234.1,4234.0,0.22053807]
[1754856955319,7.39623997,4234.1,4234.0,0.001]
[1754856957423,0.70046297,4234.1,4234.0,0.9195]
[1754856957831,3.06223997,4234.1,4234.0,0.001]
[1754856958040,8.31593174,4234.1,4234.0,0.001]
[1754856958345,12.27693174,4234.1,4234.0,0.001]
[1754856959352,0.55,4233.9,4233.6,1e-08]
[1754856959558,6.03040014,4233.7,4233.6,1e-08]
[1754856959764,6.03040014,4233.7,4233.5,0.001]
[1754856959765,5.91205593,4233.6,4233.5,1e-08]
[1754856959933,12.49901295,4233.6,4233.5,1e-08]
[1754856960144,12.96331295,4233.6,4233.5,1e-08]
[1754856960527,12.00231295,4233.6,4233.5,1e-08]
[1754856960724,11.94790036,4233.6,4233.5,1e-08]
[1754856961436,12.90890036,4233.6,4233.5,1e-08]
[1754856963055,11.94790036,4233.6,4233.5,1e-08]
[1754856963356,11.94790036,4233.6,4232.9,1e-08]
[1754856963357,2.91239073,4233.0,4232.9,1e-08]
[1754856963560,6.69539073,4233.0,4232.9,1e-08]
[1754856963764,7.19868636,4233.0,4232.9,1e-08]
[1754856964263,3.41568636,4233.0,4232.9,1e-08]
[1754856964425,6.69539073,4233.0,4232.9,1e-08]
[1754856964756,7.65149076,4233.0,4232.9,1e-08]
[1754856965062,6.69539073,4233.0,4232.9,1e-08]
[1754856965273,7.19916747,4233.0,4232.9,1e-08]
[1754856965430,8.16016747,4233.0,4232.9,1e-08]
[1754856966361,0.55,4232.9,4232.6,0.041]
[1754856966558,3.55,4232.7,4232.6,0.041]
[1754856966764,5.91261399,4232.6,4232.5,1e-08]
[1754856966967,11.16039073,4232.6,4232.5,1e-08]
[1754856967935,6.41639073,4232.6,4232.5,1e-08]
[1754856968139,9.64939073,4232.6,4232.5,1e-08]
[1754856968448,10.19890531,4232.6,4232.5,0.46330001]
[1754856968769,10.19890531,4232.6,4232.3,0.001]
[1754856968770,2.36272564,4232.4,4232.3,0.001]
[1754856968969,2.86601696,4232.4,4232.3,0.001]
[1754856969172,6.64901696,4232.4,4232.3,0.001]
[1754856970353,6.14572564,4232.4,4232.3,0.001]
[1754856972581,10.55,4232.3,4229.9,0.4633]
[1754856972871,0.55,4231.4,4230.5,0.4633]
[1754856973169,5.91367504,4230.7,4230.5,0.4633]
[1754856973477,0.1184,4230.7,4230.6,0.5033]
[1754856973680,0.1184,4230.7,4230.6,1.17849543]
[1754856973971,3.9014,4231.0,4230.6,1.5327287]
[1754856974273,0.1184,4231.0,4230.7,1.13849543]
[1754856974496,0.1184,4231.0,4230.8,0.21999543]
[1754856974676,0.1184,4231.0,4230.9,0.21999543]
[1754856974857,0.1184,4231.0,4230.9,0.67519543]
[1754856975057,0.1184,4231.0,4230.9,1.13849543]
[1754856975308,0.1184,4231.0,4230.9,0.9185]
[1754856975491,0.1184,4231.0,4230.9,0.4633]
[1754856975792,0.1184,4231.0,4230.9,0.9185]
[1754856976370,0.1184,4231.0,4230.9,1.13846044]
[1754856976567,0.62852817,4232.4,4230.9,1.13846044]
[1754856976766,3.783,4232.3,4231.0,0.21996044]
[1754856976959,0.1184,4231.1,4231.0,0.4633]
[1754856977161,0.1184,4231.1,4231.0,1.13841733]
[1754856977390,2.36350744,4231.0,4230.6,0.04]
[1754856977592,0.1184,4230.7,4230.6,0.04]
[1754856977779,0.1184,4230.7,4230.6,0.72769686]
[1754856977780,2.48207504,4230.7,4230.6,0.72769686]
[1754856978289,2.48207504,4230.7,4230.6,0.04]
[1754856978674,6.14551468,4231.0,4230.6,0.9646]
[1754856978900,0.1184,4230.7,4230.6,0.04]
[1754856979267,2.48207504,4230.7,4230.6,0.04]
[1754856979685,0.1184,4230.7,4230.6,0.04]
[1754856979998,0.1184,4230.7,4230.6,0.9646]
[1754856981664,0.1184,4230.9,4230.6,0.9646]
[1754856981865,6.14516691,4231.7,4230.8,2.36361917]
[1754856982065,0.1184,4231.4,4230.9,1.14438535]
[1754856982262,0.1184,4231.4,4231.1,2.36345158]
[1754856982508,0.1184,4231.4,4231.3,2.36333987]
[1754856982671,2.36262848,4232.6,4231.3,0.21978535]
[1754856982991,0.1184,4232.4,4231.8,0.1184]
[1754856983167,2.36219224,4233.4,4231.9,1.16801539]
[1754856983366,0.04,4233.9,4232.8,2.36245123]
[1754856983367,0.1184,4233.3,4232.8,2.36245123]
[1754856983696,0.002,4232.9,4232.8,2.36245123]
[1754856983901,0.002,4232.9,4232.8,2.5822221]
[1754856984095,0.002,4232.9,4232.8,3.53044712]
[1754856984295,0.002,4232.9,4232.8,3.5068221]
[1754856984499,0.002,4232.9,4232.8,4.10560479]
[1754856985088,0.002,4232.9,4232.8,7.10560479]
[1754856985603,0.04,4233.9,4232.9,3.0]
[1754856985775,0.04,4233.9,4233.8,2.48034435]
[1754856985973,0.04,4233.9,4233.8,2.70011522]
[1754856986298,0.04,4233.9,4233.8,4.13092942]
[1754856989801,0.04,4233.9,4233.8,0.33817087]
[1754856990101,0.04,4233.9,4233.8,0.21977087]
[1754856991005,2.40188856,4233.9,4233.8,0.21977087]
[1754856991192,0.04,4233.9,4233.6,0.1184]
[1754856991393,0.04,4233.9,4233.1,4.2368]
[1754856991394,0.042,4233.9,4233.1,4.2368]
[1754856991598,0.042,4233.9,4233.6,0.4678]
[1754856993103,0.042,4233.9,4233.7,0.21930488]
[1754856993411,0.042,4233.9,4233.5,0.1184]
[1754856993601,0.042,4233.9,4233.6,0.21925119]
[1754856993798,0.042,4233.9,4233.5,0.5862]
[1754856993994,0.042,4233.9,4233.6,0.21925049]
[1754856994202,0.042,4233.9,4233.5,0.5862]
[1754856996191,0.042,4233.9,4233.5,0.1184]
[1754856996410,0.042,4233.9,4233.6,1.14375809]
[1754856996601,0.042,4233.9,4233.5,3.8964]
[1754856997130,0.042,4233.9,4233.5,0.1184]
[1754856997293,0.042,4233.9,4233.3,3.778]
[1754856997294,2.52231888,4233.9,4233.3,3.778]
[1754856997629,2.52231888,4233.9,4233.4,0.2191208]
[1754856997780,2.52231888,4233.9,4233.3,3.8964]
[1754856997986,2.52231888,4233.9,4233.4,0.21912079]
[1754856998187,0.1604,4233.9,4233.3,3.8964]
[1754856998489,0.1604,4233.9,4233.4,0.21911586]
[1754856998722,0.1604,4233.9,4233.3,3.8964]
[1754856998884,0.1604,4233.9,4233.4,0.21909551]
[1754856999214,2.52230487,4233.9,4233.3,3.8964]
[1754856999406,2.52230487,4233.9,4233.4,0.21909413]
[1754856999607,0.1604,4233.9,4233.3,0.1184]
[1754856999801,0.1604,4233.9,4233.3,3.8964]
[1754856999802,2.36194435,4233.8,4233.3,3.8964]
[1754857000119,2.36195627,4233.8,4233.3,3.8964]
[1754857000315,2.36195627,4233.8,4233.4,0.21909068]
[1754857000515,2.36195627,4233.8,4233.3,4.3642]
[1754857000743,0.1604,4233.9,4233.3,3.8964]
[1754857000920,2.36201169,4233.7,4233.3,3.8964]
[1754857002616,2.5223003,4233.9,4233.3,3.8964]
[1754857002814,2.36200325,4233.7,4233.3,3.8964]
[1754857003019,2.36194959,4233.8,4233.3,3.8964]
[1754857003387,2.36194959,4233.8,4233.4,0.21918005]
[1754857003608,2.36194959,4233.8,4233.3,3.8964]
[1754857003804,2.36194959,4233.8,4233.4,0.2192094]
[1754857004014,0.1604,4233.9,4233.3,3.8964]
[1754857004208,0.1604,4233.9,4233.4,0.21920953]
[1754857004522,2.52229175,4233.9,4233.5,0.21928457]
[1754857004730,0.1604,4233.9,4233.3,6.25860647]
[1754857005028,0.1604,4233.9,4233.4,0.21928364]
[1754857005322,0.1604,4233.9,4233.5,0.21928364]
[1754857005491,0.1604,4233.9,4233.3,6.25860647]
[1754857005686,0.1604,4233.9,4233.4,0.21937845]
[1754857005916,0.1604,4233.9,4233.5,0.21937845]
[1754857006121,0.1604,4233.9,4233.6,0.21937845]
[1754857006422,0.1604,4233.9,4233.5,2.36210171]
[1754857006628,0.1604,4233.9,4233.6,2.58151931]
[1754857006925,0.042,4233.9,4233.8,2.36194435]
[1754857007114,0.042,4233.9,4233.8,0.21947481]
[1754857007634,0.1604,4233.9,4233.8,0.21947481]
[1754857008036,0.1604,4233.9,4233.5,3.776]
[1754857008303,0.1604,4233.9,4233.6,0.21962014]
[1754857008443,0.1604,4233.9,4233.5,3.776]
[1754857008444,2.52232975,4233.9,4233.7,0.21962014]
[1754857008619,3.46948856,4233.9,4233.8,0.21962014]
[1754857008823,3.46948856,4233.9,4233.5,3.776]
[1754857009149,0.1604,4233.9,4233.6,0.21982272]
[1754857009317,0.1604,4233.9,4233.7,0.21982272]
[1754857009518,0.1604,4233.9,4233.8,0.21982272]
[1754857011441,1.1076,4233.9,4233.8,0.21982272]
[1754857011849,0.1604,4233.9,4233.8,0.21982272]
[1754857012644,3.46948856,4233.9,4233.8,0.21982272]
[1754857012948,4.05261701,4233.9,4233.8,0.21982272]
[1754857013317,4.60261701,4233.9,4233.8,0.21982272]
[1754857013517,7.60261701,4233.9,4233.8,0.21982272]
[1754857013739,8.10828417,4233.9,4233.8,0.21982272]
[1754857016429,8.32762433,4233.9,4233.8,0.21982272]
[1754857016627,11.88228417,4233.9,4233.8,0.21982272]
[1754857017146,12.1016239,4233.9,4233.8,0.21982272]
[1754857017448,11.88228417,4233.9,4233.8,0.21982272]
[1754857018144,11.88228417,4233.9,4232.8,0.001]
[1754857018145,2.36221225,4233.4,4232.8,0.001]
[1754857018345,0.1184,4233.0,4232.9,0.221112]
[1754857020329,0.042,4233.9,4232.9,1.45371505]
[1754857020550,0.042,4233.9,4233.3,2.36221542]
[1754857020849,0.042,4233.9,4233.4,2.58327195]
[1754857021059,0.042,4233.9,4233.5,0.221112]
[1754857021263,0.042,4233.9,4233.6,0.221112]
[1754857021421,0.042,4233.9,4233.7,0.221112]
[1754857021747,0.042,4233.9,4233.8,0.221112]
[1754857022523,0.042,4233.9,4233.8,0.695512]
[1754857022740,0.042,4233.9,4233.8,1.147812]
[1754857023125,0.042,4233.9,4233.8,3.50975635]
[1754857023654,0.042,4233.9,4233.8,1.147812]
[1754857023826,0.042,4233.9,4233.8,3.50975635]
[1754857024239,0.042,4233.9,4233.8,1.147812]
[1754857024448,0.042,4233.9,4233.8,3.50975635]
[1754857024950,0.042,4233.9,4233.8,1.147812]
[1754857025567,0.042,4233.9,4233.8,3.50975635]
[1754857026559,0.042,4233.9,4233.8,7.28175635]
[1754857026759,0.042,4233.9,4233.8,6.82945635]
[1754857026963,0.042,4233.9,4233.8,6.35505635]
[1754857027850,0.042,4233.9,4233.8,6.82945635]
[1754857028256,0.042,4233.9,4233.8,7.28175635]
[1754857028553,0.042,4233.9,4233.8,7.28169734]
[1754857029551,0.042,4233.9,4233.8,7.79377799]
[1754857029764,0.042,4233.9,4233.8,8.24607799]
[1754857030351,0.042,4233.9,4233.8,8.36447799]
[1754857035649,0.042,4233.9,4233.8,7.43777799]
[1754857036562,0.042,4233.9,4233.8,7.91217799]
[1754857037489,0.042,4233.9,4233.8,8.36416839]
[1754857040287,0.042,4233.9,4233.8,8.36412216]
[1754857042290,0.042,4233.9,4233.8,11.36412216]
[1754857042488,1e-08,4233.9,4233.8,11.91412216]